fUST/lending_fUST_20251215
["ID","MTS","AMOUNT","RATE_DAILY","PERIOD"]
[398525789,1765787952043,192.19,0.000116,2]
[398525790,1765787952340,192.19,0.000117,2]
[398525791,1765787952632,192.19,0.000118,2]
[398525792,1765787953037,192.19,0.000119,2]
[398525793,1765787953165,192.19,0.00012,2]
[398525794,1765787954384,192.19,0.00012,2]
[398525795,1765787962358,1694.74515543,0.00012017,2]
[398525796,1765787962380,3305.25484457,0.00012017,2]
[398525797,1765787971940,5000.0,0.00012017,2]
[398525798,1765787979696,233.97,7.254e-05,2]
[398525799,1765787980086,467.94,7.914e-05,2]
[398525800,1765787980492,701.91,8.573e-05,2]
[398525801,1765787980910,290.93515543,9.233e-05,2]
[398525802,1765787980934,644.93484457,9.233e-05,2]
[398525803,1765787981324,1169.84,9.892e-05,2]
[398525804,1765787981840,1403.81,0.00010552,2]
[398525805,1765787982603,1637.78,0.00011211,2]
[398525806,1765787983081,1871.75,0.00011871,2]
[398525807,1765787987778,3031.86606293,0.00012017,2]
[398525808,1765787996412,240.0290925,0.00012017,2]
[398525809,1765787996434,4759.9709075,0.00012017,2]
[398525814,1765788011927,256.16,0.0001,2]
[398525815,1765788012254,256.16,0.000101,2]
[398525816,1765788012557,256.16,0.000102,2]
[398525817,1765788012837,256.16,0.000102,2]
[398525818,1765788013163,256.16,0.000103,2]
[398525819,1765788013432,256.16,0.000104,2]
[398525820,1765788013718,256.16,0.000105,2]
[398525821,1765788014149,256.16,0.000106,2]
[398525822,1765788014428,256.16,0.000107,2]
[398525823,1765788014868,256.16,0.000107,2]
[398525824,1765788015231,256.16,0.000108,2]
[398525825,1765788015501,256.16,0.000109,2]
[398525826,1765788015770,256.16,0.00011,2]
[398525827,1765788016043,256.16,0.000111,2]
[398525828,1765788016409,256.16,0.000111,2]
[398525829,1765788016741,256.16,0.000112,2]
[398525830,1765788017012,256.16,0.000113,2]
[398525831,1765788017392,256.16,0.000114,2]
[398525832,1765788017680,256.16,0.000115,2]
[398525833,1765788017986,256.16,0.000116,2]
[398525834,1765788018275,116.8390925,0.000116,2]
[398525835,1765788018298,139.3209075,0.000116,2]
[398525836,1765788018629,256.16,0.000117,2]
[398525837,1765788018948,256.16,0.000118,2]
[398525838,1765788019224,256.16,0.000119,2]
[398525839,1765788020051,256.16,0.00012,2]
[398525840,1765788020127,256.16,0.00012,2]
[398525841,1765788020893,5000.0,0.00012017,2]
[398525842,1765788043980,3579.8890925,0.00012017,2]
[398525843,1765788044001,1420.1109075,0.00012017,2]
[398525845,1765788056787,209.49,7.391e-05,2]
[398525846,1765788057179,418.98,8.063e-05,2]
[398525847,1765788057572,628.46,8.735e-05,2]
[398525848,1765788057962,837.95,9.407e-05,2]
[398525849,1765788058370,1047.44,0.00010079,2]
[398525850,1765788058766,1256.93,0.00010751,2]
[398525851,1765788059540,1466.41,0.00011423,2]
[398525852,1765788061535,203.2032952,0.0001114,2]
[398525854,1765788066809,2511.0357973,0.00012017,2]
[398525855,1765788066830,2488.9642027,0.00012017,2]
[398525856,1765788070715,174.18,0.0001,2]
[398525857,1765788071134,174.18,0.000101,2]
[398525858,1765788071475,174.18,0.000102,2]
[398525859,1765788071782,174.18,0.000102,2]
[398525860,1765788072153,174.18,0.000103,2]
[398525861,1765788073173,174.18,0.000104,2]
[398525862,1765788073447,174.18,0.000105,2]
[398525863,1765788073738,174.18,0.000106,2]
[398525864,1765788074105,174.18,0.000107,2]
[398525865,1765788074509,174.18,0.000107,2]
[398525866,1765788074815,174.18,0.000108,2]
[398525867,1765788075131,174.18,0.000109,2]
[398525868,1765788075480,174.18,0.00011,2]
[398525869,1765788075788,174.18,0.000111,2]
[398525870,1765788076083,174.18,0.000111,2]
[398525871,1765788076450,174.18,0.000112,2]
[398525872,1765788076741,174.18,0.000113,2]
[398525873,1765788077214,174.18,0.000114,2]
[398525874,1765788077595,174.18,0.000115,2]
[398525875,1765788077888,174.18,0.000116,2]
[398525876,1765788078223,174.18,0.000116,2]
[398525877,1765788078589,174.18,0.000117,2]
[398525878,1765788078865,174.18,0.000118,2]
[398525880,1765788079371,174.18,0.000119,2]
[398525881,1765788079471,174.18,0.00012,2]
[398525882,1765788079845,174.18,0.00012,2]
[398525883,1765788089763,174.1,0.0001,2]
[398525884,1765788090825,5000.0,0.00012017,2]
[398525886,1765788107745,280.9532705,0.00012017,2]
[398525887,1765788115502,1409.7167295,0.00012017,2]
[398525888,1765788115527,3590.2832705,0.00012017,2]
[398525892,1765788131180,153.29,0.0001,2]
[398525893,1765788131394,153.29,0.000101,2]
[398525894,1765788131717,153.29,0.000102,2]
[398525895,1765788132088,153.29,0.000103,2]
[398525896,1765788132372,153.29,0.000104,2]
[398525897,1765788132641,153.29,0.000105,2]
[398525898,1765788132907,153.29,0.000106,2]
[398525899,1765788133186,153.29,0.000107,2]
[398525900,1765788133523,153.29,0.000108,2]
[398525901,1765788133837,153.29,0.000109,2]
[398525902,1765788134199,153.29,0.000111,2]
[398525903,1765788134494,153.29,0.000112,2]
[398525904,1765788134711,199.29,7.26e-05,2]
[398525905,1765788134787,153.29,0.000113,2]
[398525906,1765788135123,398.58,7.92e-05,2]
[398525907,1765788135155,153.29,0.000114,2]
[398525908,1765788135443,153.29,0.000115,2]
[398525909,1765788135542,597.87,8.58e-05,2]
[398525910,1765788136302,153.29,0.000116,2]
[398525911,1765788136340,797.17,9.24e-05,2]
[398525912,1765788136377,153.29,0.000117,2]
[398525913,1765788136428,996.46,9.9e-05,2]
[398525914,1765788136475,153.29,0.000118,2]
[398525915,1765788136757,661.1367295,0.0001056,2]
[398525916,1765788136784,534.6132705,0.0001056,2]
[398525917,1765788136895,153.29,0.000119,2]
[398525918,1765788137172,1395.04,0.0001122,2]
[398525919,1765788137573,1594.33,0.0001188,2]
[398525920,1765788137918,153.29,0.00012,2]
[398525921,1765788139101,5000.0,0.00012017,2]
[398525922,1765788141087,150.0,5.2e-07,2]
[398525923,1765788142124,150.0,5.2e-07,2]
[398525924,1765788143656,150.0,5.2e-07,2]
[398525926,1765788180034,172.4762683,5.57e-05,2]
[398525949,1765788212533,152.48,7.093e-05,2]
[398525950,1765788212936,304.97,7.738e-05,2]
[398525951,1765788213330,457.45,8.383e-05,2]
[398525954,1765788221977,-327.55072837,9.028e-05,2]
[398525955,1765788226272,-179.92372092,9.028e-05,2]
[398525956,1765788227941,-102.45555071,9.028e-05,2]
[398525957,1765788227965,-135.72605201,9.673e-05,2]
[398525958,1765788229944,-291.0814471,9.673e-05,2]
[398525959,1765788232000,-242.93571075,9.673e-05,2]
[398525960,1765788239003,-92.67679014,9.673e-05,2]
[398525961,1765788239031,-153.16,0.0001,2]
[398525962,1765788239058,-153.16,0.000102,2]
[398525963,1765788239087,-914.9,0.00010317,2]
[398525964,1765788239116,-153.16,0.000104,2]
[398525965,1765788239143,-153.16,0.000106,2]
[398525966,1765788239170,-153.16,0.000108,2]
[398525967,1765788239198,-1067.39,0.00010962,2]
[398525968,1765788239227,-153.16,0.000111,2]
[398525969,1765788239255,-153.16,0.000113,2]
[398525970,1765788239282,-153.16,0.000115,2]
[398525971,1765788239311,-1219.87,0.00011607,2]
[398525972,1765788239342,-153.16,0.000117,2]
[398525973,1765788239370,-153.16,0.000119,2]
[398525975,1765788248272,-157.4,0.0001,2]
[398525976,1765788248302,-157.4,0.000104,2]
[398525977,1765788251974,-157.4,0.000107,2]
[398525978,1765788252003,-157.4,0.000111,2]
[398525980,1765788274196,-157.37,0.0001,2]
[398525981,1765788285135,-500.0,0.00011499,2]
[398525982,1765788285164,-500.0,0.00011499,2]
[398525983,1765788285193,-197.65873817,0.00011499,2]
[398525984,1765788289024,150.0,7.208e-05,2]
[398525985,1765788289422,165.24,7.864e-05,2]
[398525986,1765788290315,247.86,8.519e-05,2]
[398525987,1765788291473,-330.47,9.174e-05,2]
[398525988,1765788291504,-413.09,9.83e-05,2]
[398525989,1765788294653,-495.71,0.00010485,2]
[398525990,1765788294682,-578.33,0.0001114,2]
[398525992,1765788304083,-300.0,0.00011499,2]
[398525993,1765788307077,-157.42,0.0001,2]
[398525994,1765788307106,-157.42,0.000107,2]
[398525995,1765788307135,-157.42,0.000113,2]
[398525996,1765788310177,-157.41,0.0001,2]
[398525998,1765788322867,-6127.79324492,0.000115,2]
[398526010,1765788367930,150.0,7.112e-05,2]
[398526011,1765788368372,150.0,7.758e-05,2]
[398526012,1765788368802,156.96,8.405e-05,2]
[398526013,1765788372710,-209.27,9.051e-05,2]
[398526014,1765788372734,-125.98387786,9.698e-05,2]
[398526015,1765788404570,-135.60612214,9.698e-05,2]
[398526016,1765788404599,-154.99,0.0001,2]
[398526017,1765788404629,-154.96,0.0001,2]
[398526018,1765788404665,-154.99,0.000103,2]
[398526019,1765788404695,-313.91,0.00010344,2]
[398526020,1765788404724,-154.99,0.000106,2]
[398526021,1765788404752,-154.99,0.000109,2]
[398526022,1765788404786,-366.23,0.00010991,2]
[398526023,1765788404816,-154.99,0.000111,2]
[398526024,1765788404846,-500.0,0.00011383,2]
[398526025,1765788404874,-461.85175893,0.00011383,2]
[398526026,1765788405229,-675.72,0.0001,2]
[398526027,1765788405239,-3909.27423786,0.00011384,2]
[398526028,1765788405291,-1090.72576214,0.00011384,2]
[398526029,1765788405320,-154.99,0.000114,2]
[398526030,1765788405349,-300.0,0.00011499,2]
[398526031,1765788405492,-6908.57847572,0.000115,2]
[398526032,1765788405582,189.3361304,0.000102,2]
[398526033,1765788405613,-486.3838696,0.000102,2]
[398526034,1765788405739,-9027.2422608,0.000115,2]
[398526035,1765788405826,-10000.01,0.000115,2]
[398526036,1765788406035,-10000.01,0.000115,2]
[398526037,1765788416530,-5000.0,0.00010296,2]
[398526038,1765788416570,-0.01,0.000104,2]
[398526039,1765788416695,-675.71,0.000104,2]
[398526040,1765788416723,-675.72,0.000106,2]
[398526041,1765788416750,-675.72,0.000108,2]
[398526042,1765788416777,-675.72,0.00011,2]
[398526043,1765788416866,-4594.27,0.000115,2]
[398526044,1765788416996,-3342.09601856,0.000115,2]
[398526046,1765788426618,155.56,0.0001,2]
[398526047,1765788426918,155.56,0.000102,2]
[398526048,1765788427195,155.56,0.000103,2]
[398526049,1765788427477,155.56,0.000105,2]
[398526050,1765788427766,155.56,0.000107,2]
[398526051,1765788428079,155.56,0.000109,2]
[398526052,1765788428478,2382.45796288,0.000115,2]
[398526053,1765788428506,2617.54203712,0.000115,2]
[398526054,1765788428561,155.56,0.00011,2]
[398526055,1765788429315,155.56,0.000112,2]
[398526056,1765788429453,155.56,0.000114,2]
[398526057,1765788435410,155.5,0.0001,2]
[398526058,1765788436390,5000.0,0.000115,2]
[398526059,1765788442784,150.0,7.098e-05,2]
[398526060,1765788443201,150.0,7.743e-05,2]
[398526061,1765788443602,162.74,8.389e-05,2]
[398526062,1765788444016,216.99,9.034e-05,2]
[398526063,1765788444462,271.24,9.679e-05,2]
[398526064,1765788444993,325.49,0.00010324,2]
[398526065,1765788445623,379.74,0.0001097,2]
[398526069,1765788452661,104.08796288,0.000115,2]
[398526070,1765788452681,4895.91203712,0.000115,2]
[398526071,1765788460865,5000.0,0.000115,2]
[398526074,1765788476762,104.09796288,0.000115,2]
[398526075,1765788476786,4895.90203712,0.000115,2]
[398526076,1765788485327,5000.0,0.000115,2]
[398526077,1765788487595,104.10796288,0.0001,2]
[398526078,1765788487617,51.35203712,0.0001,2]
[398526079,1765788487946,155.46,0.000103,2]
[398526080,1765788488327,155.46,0.000106,2]
[398526082,1765788488597,155.46,0.000109,2]
[398526083,1765788489184,155.46,0.000111,2]
[398526084,1765788489272,155.46,0.000114,2]
[398526086,1765788496330,155.43,0.0001,2]
[398526091,1765788508950,5000.0,0.000115,2]
[398526092,1765788519275,150.0,7.1e-05,2]
[398526093,1765788519632,150.0,7.746e-05,2]
[398526094,1765788519947,150.0,8.391e-05,2]
[398526095,1765788520341,150.0,9.037e-05,2]
[398526096,1765788520739,165.85,9.682e-05,2]
[398526097,1765788521150,199.02,0.00010328,2]
[398526098,1765788521554,232.19,0.00010973,2]
[398526099,1765788525760,2818.86796288,0.000115,2]
[398526100,1765788525782,2181.13203712,0.000115,2]
[398526101,1765788533542,5000.0,0.000115,2]
[398526102,1765788534735,-265.36,0.00011619,2]
[398526103,1765788534763,-193.80082711,0.00011648,2]
[398526104,1765788534791,-155.46,0.000117,2]
[398526105,1765788539053,201.8946193,0.00011434,2]
[398526109,1765788547458,160.58,0.0001,2]
[398526110,1765788547774,160.58,0.000106,2]
[398526111,1765788548098,160.58,0.000111,2]
[398526112,1765788548384,160.58,0.000117,2]
[398526113,1765788550517,5000.0,0.000117,2]
[398526114,1765788551320,160.57,0.0001,2]
[398526117,1765788590920,150.0,7.148e-05,2]
[398526118,1765788591488,150.0,7.798e-05,2]
[398526119,1765788591878,150.0,8.448e-05,2]
[398526120,1765788592281,150.0,9.097e-05,2]
[398526121,1765788592685,150.0,9.747e-05,2]
[398526122,1765788593100,150.0,0.00010397,2]
[398526123,1765788593499,171.39,0.00011047,2]
[398526127,1765788604438,160.58,0.0001,2]
[398526143,1765788632531,-195.87,0.00011697,2]
[398526144,1765788632541,-359.18953638,0.00011697,2]
[398526147,1765788632594,-225.81046362,0.00011697,2]
[398526149,1765788632603,-189.92481056,0.00011712,2]
[398526150,1765788632612,-5000.0,0.00011727,2]
[398526151,1765788632622,-977.84642966,0.00011845,2]
[398526152,1765788632631,-160.58,0.00012,2]
[398526153,1765788632641,-300.0,0.00012135,2]
[398526154,1765788632650,-300.0,0.00012135,2]
[398526155,1765788632660,-191.0,0.00012135,2]
[398526156,1765788632669,-870.85052403,0.00012136,2]
[398526157,1765788632680,-1902.71738116,0.00012136,2]
[398526158,1765788632689,-399.0,0.00012136,2]
[398526159,1765788632698,-1200.0,0.0001214,2]
[398526160,1765788632707,-97.95100964,0.00012143,2]
[398526238,1765788638908,-3398.52810276,0.00012143,2]
[398526330,1765788641139,-3e-08,0.00012143,2]
[398526579,1765788660680,150.0,7.128e-05,2]
[398526580,1765788661086,150.0,7.776e-05,2]
[398526581,1765788661517,150.0,8.425e-05,2]
[398526582,1765788661930,150.0,9.073e-05,2]
[398526583,1765788664036,160.58,0.0001,2]
[398526584,1765788725833,150.0,7.148e-05,2]
[398526585,1765788726207,150.0,7.798e-05,2]
[398526586,1765788854200,150.0,7.787e-05,2]
[398526587,1765788880074,-5000.0,0.00011902,2]
[398526588,1765788890393,-167.77722702,0.00012107,3]
[398526589,1765788890422,-398.26056846,0.00012141,2]
[398526590,1765788890449,-1200.0,0.00012142,2]
[398526591,1765788890476,-155.0,0.00012142,2]
[398526592,1765788890503,-300.0,0.00012142,2]
[398526593,1765788890531,-500.0,0.00012142,2]
[398526594,1765788890560,-500.0,0.00012142,2]
[398526595,1765788890590,-251.5391672,0.00012142,2]
[398526596,1765788891104,-399.85607464,0.00012143,2]
[398526597,1765788932183,-5000.0,0.00012022,2]
[398526598,1765788932340,-0.01,0.00012141,2]
[398526604,1765789020932,904.8707121,0.00011546,2]
[398526606,1765789072663,-5000.0,0.0001202,2]
[398526607,1765789095285,-5000.0,0.0001196,2]
[398526608,1765789101780,-194.58631435,0.00012081,2]
[398526609,1765789101808,-215.0,0.00012142,2]
[398526610,1765789101835,-3077.17255837,0.00012143,2]
[398526611,1765789101933,-2121.64154246,0.00012143,2]
[398526613,1765789203622,-922.0525003,0.00011848,2]
[398526614,1765789203650,-362.18179197,0.00011848,2]
[398526615,1765789203677,-2076.32339966,0.00011902,2]
[398526616,1765789204443,-3278.89461614,0.00012022,2]
[398526617,1765789212036,-587.0,0.00011848,2]
[398526618,1765789212066,-1721.10538386,0.00012022,2]
[398526619,1765789212093,-904.8507121,0.00012143,2]
[398526620,1765789212119,-319.33496789,0.00012143,2]
[398526621,1765789212148,-300.0,0.00012354,2]
[398526622,1765789212176,-273.0,0.00012354,2]
[398526623,1765789212203,-300.0,0.00012354,2]
[398526624,1765789212372,-1189.4278723,0.00012354,2]
[398526625,1765789267075,161.26,0.000101,2]
[398526626,1765789325005,161.27,0.000101,2]
[398526627,1765789326140,161.26,0.000101,2]
[398526628,1765789382470,161.25,0.000101,2]
[398526629,1765789419404,5000.0,0.00011637,2]
[398526630,1765789436080,4354.97,0.00011637,2]
[398526631,1765789436101,645.03,0.00011637,2]
[398526632,1765789444362,5000.0,0.00011637,2]
[398526633,1765789450475,-658.5596599,0.00011848,2]
[398526634,1765789460175,4729.04,0.00011848,2]
[398526635,1765789468363,3953.8506802,0.00011848,2]
[398526636,1765789468385,1046.1493198,0.00011848,2]
[398526637,1765789491356,5000.0,0.00011848,2]
[398526639,1765789514298,3953.8606802,0.00011848,2]
[398526640,1765789514325,1046.1393198,0.00011848,2]
[398526641,1765789537536,5000.0,0.00011848,2]
[398526647,1765789558128,150.0,7.826e-05,2]
[398526648,1765789558999,150.0,8.537e-05,2]
[398526649,1765789559457,150.0,9.248e-05,2]
[398526650,1765789560109,150.0,9.96e-05,2]
[398526651,1765789560262,150.0,0.00010671,2]
[398526652,1765789560666,150.0,0.00011383,2]
[398526653,1765789560779,3053.8706802,0.00011848,2]
[398526654,1765789561073,1946.1293198,0.00011848,2]
[398526655,1765789583924,5000.0,0.00011848,2]
[398526656,1765789595177,2000.0,0.00011848,2]
[398526657,1765789606938,1053.8806802,0.00011848,2]
[398526658,1765789606960,3946.1193198,0.00011848,2]
[398526659,1765789623617,162.28,0.000101,2]
[398526661,1765789629549,150.0,7.826e-05,2]
[398526662,1765789629678,150.0,8.537e-05,2]
[398526663,1765789630003,150.0,9.249e-05,2]
[398526664,1765789630500,150.0,9.96e-05,2]
[398526665,1765789630833,170.56,0.00010672,2]
[398526666,1765789631270,204.67,0.00011383,2]
[398526667,1765789641733,4916.3806802,0.00011848,2]
[398526668,1765789641755,83.6193198,0.00011848,2]
[398526669,1765789665283,5000.0,0.00011848,2]
[398526670,1765789688366,4916.3906802,0.00011848,2]
[398526671,1765789688387,83.6093198,0.00011848,2]
[398526672,1765789697107,-194.434173,0.00012034,2]
[398526673,1765789697137,-238.79,0.00012094,2]
[398526674,1765789697165,-273.0,0.00012228,2]
[398526675,1765789697192,-500.0,0.00012356,2]
[398526676,1765789697220,-300.0,0.0001249,2]
[398526677,1765789697249,-1200.0,0.0001249,2]
[398526678,1765789697277,-500.0,0.00012492,2]
[398526679,1765789697306,-622.5454787,0.00012492,2]
[398526680,1765789697338,-500.0,0.00012492,2]
[398526681,1765789697367,-198.02541624,0.00012492,2]
[398526682,1765789697396,-156.66967847,0.00012492,2]
[398526683,1765789697424,-133.08050718,0.00012492,2]
[398526684,1765789700670,150.0,7.09e-05,2]
[398526685,1765789701090,150.0,7.735e-05,2]
[398526686,1765789701499,150.0,8.379e-05,2]
[398526687,1765789708526,-150.0,9.024e-05,2]
[398526688,1765789708557,-183.93,9.668e-05,2]
[398526689,1765789708587,-220.72,0.00010313,2]
[398526690,1765789708619,-257.5,0.00010957,2]
[398526691,1765789708647,-294.29,0.00011602,2]
[398526692,1765789708675,-331.07,0.00012247,2]
[398526693,1765789708701,-366.91949282,0.00012492,2]
[398526694,1765789708729,-500.0,0.00012492,2]
[398526695,1765789708754,-454.61073366,0.00012492,2]
[398526696,1765789708783,-500.0,0.00012492,2]
[398526697,1765789708812,-165.20621247,0.00012492,2]
[398526698,1765789708840,-500.0,0.00012492,2]
[398526699,1765789708868,-500.0,0.00012492,2]
[398526700,1765789708898,-219.90400963,0.00012492,2]
[398526701,1765789768822,150.0,5.2e-07,2]
[398526702,1765789769723,150.0,5.2e-07,2]
[398526703,1765789772904,150.0,7.101e-05,2]
[398526704,1765789773309,150.0,7.746e-05,2]
[398526705,1765789773736,150.0,8.392e-05,2]
[398526706,1765789774117,150.0,9.037e-05,2]
[398526707,1765789774559,150.0,9.683e-05,2]
[398526708,1765789775017,150.0,0.00010328,2]
[398526725,1765789831777,-500.0,0.00012356,2]
[398526726,1765789831787,-1446.20518151,0.00012368,2]
[398526727,1765789831800,-3553.79481849,0.00012368,2]
[398526728,1765789831810,-595.0,0.00012368,2]
[398526729,1765789831819,-300.0,0.00012491,2]
[398526730,1765789831836,-1001.0,0.00012493,2]
[398526731,1765789831849,-2674.60743027,0.00012493,2]
[398526734,1765789831859,-5883.35248315,0.000125,2]
[398526737,1765789831870,-660.10838474,0.00012608,2]
[398526739,1765789831879,-397.9302561,0.000127,2]
[398526741,1765789831889,-404.062303,0.000127,2]
[398526743,1765789831900,-223.48647791,0.000128,3]
[398526745,1765789831909,-500.0,0.00012899,2]
[398526747,1765789831919,-150.0,0.00012899,2]
[398526748,1765789831929,-500.0,0.00012999,2]
[398526749,1765789831939,-500.0,0.00012999,2]
[398526750,1765789831948,-183.59233037,0.00013,2]
[398526751,1765789831966,-166.40766963,0.00013,2]
[398526752,1765789831976,-122.24833169,0.00013008,2]
[398526767,1765789837962,-302.21155663,0.00012492,2]
[398526768,1765789837973,-1065.94676084,0.00013008,2]
[398526769,1765789837983,-497.31886027,0.00013036,2]
[398526770,1765789838021,-2.68113973,0.00013036,2]
[398526771,1765789838031,-150.0,0.00013036,2]
[398526772,1765789838040,-610.30858058,0.00013041,2]
[398526773,1765789838052,-700.31182566,0.00013041,2]
[398526774,1765789838064,-1462.94749895,0.00013041,2]
[398526775,1765789838074,-300.0,0.00013067,2]
[398526776,1765789838083,-300.0,0.00013067,2]
[398526777,1765789838093,-300.0,0.00013067,2]
[398526778,1765789838103,-300.0,0.00013067,2]
[398526779,1765789838112,-300.0,0.00013067,2]
[398526780,1765789838121,-300.0,0.00013067,2]
[398526781,1765789838130,-300.0,0.00013067,2]
[398526782,1765789838140,-269.7016877,0.00013067,2]
[398526822,1765789839954,-30.2983123,0.00013067,2]
[398526824,1765789839963,-300.0,0.00013067,2]
[398526826,1765789839972,-300.0,0.00013067,2]
[398526828,1765789839981,-300.0,0.00013067,2]
[398526830,1765789839990,-300.0,0.00013067,2]
[398526832,1765789839999,-300.0,0.00013067,2]
[398526834,1765789840009,-300.0,0.00013067,2]
[398526836,1765789840019,-300.0,0.00013067,2]
[398526838,1765789840028,-429.29,0.00013073,2]
[398526840,1765789840037,-3335.8725458,0.00013073,2]
[398526842,1765789840046,-600.0,0.00013075,2]
[398526844,1765789840055,-722.18462675,0.00013135,2]
[398526846,1765789840064,-500.0,0.00013136,2]
[398526848,1765789840073,-500.0,0.00013136,2]
[398526850,1765789840082,-150.0,0.00013145,2]
[398526852,1765789840091,-150.0,0.00013145,2]
[398526854,1765789840100,-206.56822938,0.00013145,2]
[398526856,1765789840109,-414.8,0.00013165,2]
[398526858,1765789840118,-500.0,0.00013165,2]
[398526860,1765789840126,-500.0,0.00013165,2]
[398526862,1765789840135,-513.49210731,0.00013165,2]
[398526864,1765789840144,-250.0,0.00013165,2]
[398526866,1765789840152,-250.0,0.00013165,2]
[398526868,1765789840161,-250.0,0.00013165,2]
[398526870,1765789840170,-251.92855197,0.00013165,2]
[398526872,1765789840179,-553.64373807,0.00013165,2]
[398526874,1765789840188,-250.0,0.00013165,2]
[398526875,1765789840197,-250.0,0.00013165,2]
[398526877,1765789840207,-250.88504518,0.00013165,2]
[398526879,1765789840216,-250.0,0.00013165,2]
[398526881,1765789840226,-250.0,0.00013165,2]
[398526883,1765789840235,-250.0,0.00013165,2]
[398526885,1765789840243,-209.12255818,0.00013165,2]
[398526887,1765789840253,-8155.68207322,0.00013173,2]
[398527214,1765790193869,237.47162448,0.00012291,2]
[398527215,1765790212613,5000.0,0.000125,2]
[398527216,1765790220911,150.0,7.173e-05,2]
[398527217,1765790221295,150.0,7.825e-05,2]
[398527218,1765790221758,150.0,8.477e-05,2]
[398527219,1765790222159,150.0,9.129e-05,2]
[398527220,1765790222567,150.0,9.781e-05,2]
[398527221,1765790286939,150.0,7.075e-05,2]
[398527222,1765790347157,2112.34683116,0.00012227,2]
[398527223,1765790432721,300.0,0.000125,2]
[398527224,1765790463776,-300.0,0.00012547,2]
[398527225,1765790463803,-4400.01,0.00012548,2]
[398527226,1765790467043,-5000.0,0.00012423,2]
[398527227,1765790473290,-597.0,0.00012548,2]
[398527228,1765790473321,-500.0,0.00012591,2]
[398527229,1765790473350,-314.0743318,0.00012591,2]
[398527230,1765790473379,-3300.54192369,0.00012592,2]
[398527231,1765790473406,-199.53260338,0.00012612,2]
[398527232,1765790476190,151.0,5.2e-07,2]
[398527233,1765790490573,5000.0,0.000125,2]
[398527234,1765790495528,427.44892406,0.00012163,2]
[398527235,1765790506308,2427.9956682,0.000125,2]
[398527236,1765790514339,2144.56540774,0.000125,2]
[398527237,1765790514361,2855.43459226,0.000125,2]
[398527238,1765790516065,500.0,0.00012356,2]
[398527239,1765790522375,160.28,0.0001,2]
[398527240,1765790522687,160.28,0.000113,2]
[398527241,1765790537663,5000.0,0.000125,2]
[398527242,1765790542245,150.0,7.264e-05,2]
[398527243,1765790542386,150.0,7.924e-05,2]